[Event "Early-Titled-Tuesday-Blitz-February-20-2024"]
[Site "Chess.com"]
[Date "2024.02.20"]
[Round "3"]
[White "Agentxya"]
[Black "arturdailima"]
[Result "1-0"]
[WhiteElo "2196"]
[BlackElo "2374"]
[TimeControl "180+1"]
[EndTime "8:26:02 PST"]
[Termination "Agentxya won by resignation"]

1. e4 {[%clk 0:03:00.9]} 1... c6 {[%clk 0:02:38]} 2. d4 {[%clk 0:03:00]} 2... d5
{[%clk 0:02:38.1]} 3. e5 {[%clk 0:03:00]} 3... Bf5 {[%clk 0:02:34.4]} 4. Nf3
{[%clk 0:02:59.9]} 4... e6 {[%clk 0:02:27.9]} 5. Be2 {[%clk 0:02:59.2]} 5... Nd7
{[%clk 0:02:25.6]} 6. O-O {[%clk 0:02:56]} 6... Ne7 {[%clk 0:02:24.3]} 7. Nbd2
{[%clk 0:02:53.6]} 7... h6 {[%clk 0:02:21.1]} 8. Nb3 {[%clk 0:02:51.2]} 8... Bg6
{[%clk 0:02:20.6]} 9. Bd2 {[%clk 0:02:49.5]} 9... Nf5 {[%clk 0:02:20]} 10. Rc1
{[%clk 0:02:38.8]} 10... Be7 {[%clk 0:02:19.5]} 11. c4 {[%clk 0:02:38.9]} 11...
Nb6 {[%clk 0:02:17.3]} 12. Ba5 {[%clk 0:02:27.2]} 12... Qd7 {[%clk 0:02:08]} 13.
c5 {[%clk 0:02:02.4]} 13... Nc8 {[%clk 0:02:05.9]} 14. g4 {[%clk 0:01:45]} 14...
Nh4 {[%clk 0:02:05.3]} 15. Nxh4 {[%clk 0:01:45.3]} 15... Bxh4 {[%clk 0:02:06.2]}
16. f4 {[%clk 0:01:43.9]} 16... Be4 {[%clk 0:02:02]} 17. Bf3 {[%clk 0:01:41.7]}
17... Bxf3 {[%clk 0:01:52.6]} 18. Qxf3 {[%clk 0:01:41.9]} 18... f5 {[%clk
0:01:52.7]} 19. gxf5 {[%clk 0:01:25]} 19... exf5 {[%clk 0:01:52.7]} 20. Qh5+
{[%clk 0:01:24.3]} 20... Qf7 {[%clk 0:01:43.6]} 21. Qxh4 {[%clk 0:01:24.5]}
21... O-O {[%clk 0:01:43.8]} 22. Kh1 {[%clk 0:01:20.3]} 22... Ne7 {[%clk
0:01:42]} 23. Rg1 {[%clk 0:01:12.8]} 23... Rfe8 {[%clk 0:01:39.2]} 24. Qxh6
{[%clk 0:01:07.7]} 24... Kf8 {[%clk 0:01:39]} 25. Qh8+ {[%clk 0:01:04.9]} 25...
Ng8 {[%clk 0:01:39.1]} 26. Rc2 {[%clk 0:01:01.4]} 26... Re6 {[%clk 0:01:39]} 27.
Rcg2 {[%clk 0:01:00.4]} 27... Rh6 {[%clk 0:01:38.4]} 28. Qxg7+ {[%clk
0:01:00.3]} 28... Qxg7 {[%clk 0:01:38.7]} 29. Rxg7 {[%clk 0:01:01.2]} 29... b6
{[%clk 0:01:35.9]} 30. Rxg8+ {[%clk 0:01:01]} 1-0

[Event "Early-Titled-Tuesday-Blitz-February-20-2024"]
[Site "Chess.com"]
[Date "2024.02.20"]
[Round "3"]
[White "MaxLeto"]
[Black "A-Fier"]
[Result "0-1"]
[WhiteElo "2571"]
[BlackElo "2799"]
[TimeControl "180+1"]
[EndTime "8:26:07 PST"]
[Termination "A-Fier won on time"]

1. g4 {[%clk 0:02:59.2]} 1... Nf6 {[%clk 0:03:00.9]} 2. g5 {[%clk 0:02:59.1]}
2... Ne4 {[%clk 0:03:01.4]} 3. d3 {[%clk 0:02:58.2]} 3... Nc5 {[%clk 0:03:01.9]}
4. d4 {[%clk 0:02:44.2]} 4... Ne6 {[%clk 0:02:59.9]} 5. d5 {[%clk 0:02:40.9]}
5... Nc5 {[%clk 0:02:59.9]} 6. b4 {[%clk 0:02:34.7]} 6... Ne4 {[%clk 0:02:59.2]}
7. Bg2 {[%clk 0:02:07.1]} 7... Nd6 {[%clk 0:02:59.7]} 8. e4 {[%clk 0:02:06.9]}
8... e6 {[%clk 0:02:57.9]} 9. Ne2 {[%clk 0:01:53.8]} 9... a5 {[%clk 0:02:58]}
10. bxa5 {[%clk 0:01:24.4]} 10... Rxa5 {[%clk 0:02:58.9]} 11. Qd4 {[%clk
0:01:07.1]} 11... b6 {[%clk 0:02:55.3]} 12. h4 {[%clk 0:00:56.3]} 12... Ba6
{[%clk 0:02:55.2]} 13. Nd2 {[%clk 0:00:52.6]} 13... h6 {[%clk 0:02:46]} 14. Nb3
{[%clk 0:00:47.9]} 14... c5 {[%clk 0:02:40.6]} 15. Qe5 {[%clk 0:00:32.8]} 15...
Ra4 {[%clk 0:02:37.1]} 16. Bf4 {[%clk 0:00:26.2]} 16... Bxe2 {[%clk 0:02:23.7]}
17. Kxe2 {[%clk 0:00:26.5]} 17... Na6 {[%clk 0:02:23]} 18. gxh6 {[%clk
0:00:24.9]} 18... Rg8 {[%clk 0:02:16.8]} 19. h7 {[%clk 0:00:15.3]} 19... Rh8
{[%clk 0:02:17]} 20. Qh5 {[%clk 0:00:02.5]} 20... Nxe4 {[%clk 0:02:13.8]} 21.
Rhe1 {[%clk 0:00:00.8]} 21... Nf6 {[%clk 0:02:13.6]} 0-1

[Event "Early-Titled-Tuesday-Blitz-February-20-2024"]
[Site "Chess.com"]
[Date "2024.02.20"]
[Round "3"]
[White "TitarovVasiliYouTube"]
[Black "Hikaru"]
[Result "0-1"]
[WhiteElo "2525"]
[BlackElo "3266"]
[TimeControl "180+1"]
[EndTime "8:26:11 PST"]
[Termination "Hikaru won by resignation"]

1. Nf3 {[%clk 0:03:00.9]} 1... g6 {[%clk 0:03:00.9]} 2. g3 {[%clk 0:03:01.4]}
2... Bg7 {[%clk 0:03:01.1]} 3. Bg2 {[%clk 0:03:02.3]} 3... d6 {[%clk 0:03:01.9]}
4. O-O {[%clk 0:03:02.8]} 4... Bd7 {[%clk 0:03:02.8]} 5. e4 {[%clk 0:03:00.8]}
5... Qc8 {[%clk 0:03:03.7]} 6. d4 {[%clk 0:02:59.2]} 6... Bh3 {[%clk 0:03:03.9]}
7. Nc3 {[%clk 0:02:57.3]} 7... Nc6 {[%clk 0:03:04.2]} 8. Be3 {[%clk 0:02:55.7]}
8... h5 {[%clk 0:03:03.8]} 9. d5 {[%clk 0:02:32.8]} 9... Ne5 {[%clk 0:03:01.6]}
10. Nxe5 {[%clk 0:02:31.8]} 10... Bxe5 {[%clk 0:03:01.4]} 11. Bd4 {[%clk
0:02:08.5]} 11... h4 {[%clk 0:02:57.2]} 12. Bxe5 {[%clk 0:02:00.2]} 12... dxe5
{[%clk 0:02:58.1]} 13. Qf3 {[%clk 0:01:51.9]} 13... hxg3 {[%clk 0:02:57.3]} 14.
fxg3 {[%clk 0:01:46.2]} 14... Nf6 {[%clk 0:02:57.4]} 15. Bxh3 {[%clk 0:01:37.1]}
15... Qxh3 {[%clk 0:02:54.2]} 16. Qg2 {[%clk 0:01:37.7]} 16... Ng4 {[%clk
0:02:44.4]} 17. Qxh3 {[%clk 0:00:53.9]} 17... Rxh3 {[%clk 0:02:45.3]} 18. Nd1
{[%clk 0:00:37.2]} 18... Nxh2 {[%clk 0:02:38.8]} 19. Rf2 {[%clk 0:00:24]} 19...
Ng4 {[%clk 0:02:38.5]} 20. Rg2 {[%clk 0:00:17.5]} 20... f5 {[%clk 0:02:36.2]}
21. Nf2 {[%clk 0:00:16.8]} 21... Nxf2 {[%clk 0:02:35.8]} 22. Kxf2 {[%clk
0:00:17.7]} 22... Kf7 {[%clk 0:02:35.3]} 23. Rf1 {[%clk 0:00:15.9]} 23... Kf6
{[%clk 0:02:32.5]} 24. Ke3 {[%clk 0:00:13]} 24... Rah8 {[%clk 0:02:28.2]} 25. c4
{[%clk 0:00:13.2]} 25... R8h5 {[%clk 0:02:27.9]} 26. b4 {[%clk 0:00:12.7]} 26...
Rg5 {[%clk 0:02:28.2]} 27. Rf3 {[%clk 0:00:12.2]} 27... Rg4 {[%clk 0:02:28.4]}
28. exf5 {[%clk 0:00:09.4]} 28... gxf5 {[%clk 0:02:28.3]} 29. Rgf2 {[%clk
0:00:05.9]} 29... Rhxg3 {[%clk 0:02:28.6]} 0-1

[Event "Early-Titled-Tuesday-Blitz-February-20-2024"]
[Site "Chess.com"]
[Date "2024.02.20"]
[Round "3"]
[White "FREDERICKtheMATE"]
[Black "Polish_fighter3000"]
[Result "0-1"]
[WhiteElo "2679"]
[BlackElo "3051"]
[TimeControl "180+1"]
[EndTime "8:26:32 PST"]
[Termination "Polish_fighter3000 won by resignation"]

1. d4 {[%clk 0:03:00.9]} 1... b5 {[%clk 0:02:54]} 2. e4 {[%clk 0:02:59.6]} 2...
Bb7 {[%clk 0:02:54.3]} 3. Bxb5 {[%clk 0:02:59.7]} 3... Bxe4 {[%clk 0:02:54.9]}
4. Nf3 {[%clk 0:03:00]} 4... e6 {[%clk 0:02:55.6]} 5. c4 {[%clk 0:02:59.7]} 5...
Nf6 {[%clk 0:02:54.4]} 6. O-O {[%clk 0:02:59.5]} 6... Be7 {[%clk 0:02:52.2]} 7.
Nc3 {[%clk 0:02:59.9]} 7... Bb7 {[%clk 0:02:52.8]} 8. d5 {[%clk 0:02:59.7]} 8...
c6 {[%clk 0:02:47.5]} 9. dxc6 {[%clk 0:02:54.9]} 9... Nxc6 {[%clk 0:02:48.4]}
10. Re1 {[%clk 0:02:53.5]} 10... O-O {[%clk 0:02:39.9]} 11. Bf4 {[%clk
0:02:53.3]} 11... Rc8 {[%clk 0:02:39.3]} 12. Bd6 {[%clk 0:02:50.7]} 12... Na5
{[%clk 0:02:34]} 13. c5 {[%clk 0:02:35]} 13... Bxd6 {[%clk 0:02:20.4]} 14. Qxd6
{[%clk 0:02:34.4]} 14... Bxf3 {[%clk 0:02:19.9]} 15. gxf3 {[%clk 0:02:35.3]}
15... Nb7 {[%clk 0:02:20.4]} 16. Qa6 {[%clk 0:02:32.2]} 16... Nxc5 {[%clk
0:02:18.1]} 17. Qxa7 {[%clk 0:02:31.6]} 17... Nh5 {[%clk 0:02:15.6]} 18. Re5
{[%clk 0:02:21.1]} 18... d6 {[%clk 0:02:11.7]} 19. Rxh5 {[%clk 0:02:15]} 19...
Ra8 {[%clk 0:02:12.3]} 20. Qxa8 {[%clk 0:02:11.6]} 20... Qxa8 {[%clk 0:02:13.2]}
21. Kg2 {[%clk 0:02:07]} 21... g6 {[%clk 0:02:10.2]} 22. Rh4 {[%clk 0:02:06.7]}
22... Rb8 {[%clk 0:02:09.9]} 23. a4 {[%clk 0:02:04.5]} 23... Nb3 {[%clk
0:02:03.8]} 24. Rd1 {[%clk 0:02:01.1]} 24... d5 {[%clk 0:02:03.7]} 25. Rb4
{[%clk 0:01:57.7]} 25... Na5 {[%clk 0:02:02.9]} 26. Rbd4 {[%clk 0:01:55]} 26...
Rc8 {[%clk 0:02:02.4]} 27. h4 {[%clk 0:01:51.2]} 27... h5 {[%clk 0:02:01.9]} 28.
Rf4 {[%clk 0:01:49.8]} 28... Qb8 {[%clk 0:02:00.7]} 29. Rfd4 {[%clk 0:01:49.2]}
29... Nc6 {[%clk 0:01:55.3]} 30. R4d2 {[%clk 0:01:41.5]} 30... Ne7 {[%clk
0:01:54.5]} 31. Ne2 {[%clk 0:01:30.5]} 31... Nf5 {[%clk 0:01:53.2]} 32. Kh3
{[%clk 0:01:30.3]} 32... Nxh4 {[%clk 0:01:38.1]} 33. Kxh4 {[%clk 0:01:20]} 33...
Qh2+ {[%clk 0:01:36.9]} 34. Kg5 {[%clk 0:01:20.4]} 34... Kg7 {[%clk 0:01:37.5]}
35. Ng3 {[%clk 0:01:15.2]} 35... e5 {[%clk 0:01:37.7]} 0-1

[Event "Early-Titled-Tuesday-Blitz-February-20-2024"]
[Site "Chess.com"]
[Date "2024.02.20"]
[Round "3"]
[White "GMAkobianSTL"]
[Black "cthake"]
[Result "1-0"]
[WhiteElo "2805"]
[BlackElo "1765"]
[TimeControl "180+1"]
[EndTime "8:26:32 PST"]
[Termination "GMAkobianSTL won by resignation"]

1. d4 {[%clk 0:03:00.9]} 1... Nf6 {[%clk 0:02:55.2]} 2. c4 {[%clk 0:03:00.3]}
2... e6 {[%clk 0:02:53.2]} 3. Nc3 {[%clk 0:03:00.7]} 3... Bb4 {[%clk 0:02:52.7]}
4. Qc2 {[%clk 0:03:00.9]} 4... d5 {[%clk 0:02:43.4]} 5. a3 {[%clk 0:02:59.8]}
5... Bxc3+ {[%clk 0:02:41.9]} 6. Qxc3 {[%clk 0:03:00.7]} 6... O-O {[%clk
0:02:36.7]} 7. Nf3 {[%clk 0:03:00]} 7... Ne4 {[%clk 0:02:31]} 8. Qc2 {[%clk
0:02:59.6]} 8... c6 {[%clk 0:02:28.2]} 9. Bf4 {[%clk 0:02:57.3]} 9... Nd7 {[%clk
0:02:26.3]} 10. e3 {[%clk 0:02:57.2]} 10... Re8 {[%clk 0:01:46.6]} 11. Bd3
{[%clk 0:02:52.4]} 11... f5 {[%clk 0:01:45.1]} 12. O-O {[%clk 0:02:51.6]} 12...
a5 {[%clk 0:01:22.2]} 13. h3 {[%clk 0:02:49.6]} 13... g5 {[%clk 0:01:16.9]} 14.
Bh2 {[%clk 0:02:48.2]} 14... Qf6 {[%clk 0:01:14.9]} 15. Ne5 {[%clk 0:02:47.8]}
15... Nxe5 {[%clk 0:01:12.9]} 16. Bxe5 {[%clk 0:02:47.1]} 16... Qg6 {[%clk
0:01:12.3]} 17. f3 {[%clk 0:02:46.8]} 17... Nf6 {[%clk 0:01:09.1]} 18. cxd5
{[%clk 0:02:45.6]} 18... cxd5 {[%clk 0:01:06.5]} 19. Qc7 {[%clk 0:02:40.7]}
19... Nd7 {[%clk 0:00:51]} 20. Bd6 {[%clk 0:02:36.4]} 20... Qf7 {[%clk
0:00:40.9]} 21. Rac1 {[%clk 0:02:35.1]} 21... Nf6 {[%clk 0:00:27.1]} 22. Qb6
{[%clk 0:02:30.2]} 22... Nd7 {[%clk 0:00:25.6]} 23. Qb5 {[%clk 0:02:27.7]} 23...
e5 {[%clk 0:00:22.7]} 24. Rc7 {[%clk 0:02:20.6]} 24... Qe6 {[%clk 0:00:19.3]}
25. dxe5 {[%clk 0:02:06.8]} 25... Nxe5 {[%clk 0:00:18.9]} 26. Bxe5 {[%clk
0:02:02.8]} 26... Qxe5 {[%clk 0:00:19.2]} 27. Rfc1 {[%clk 0:01:57.6]} 27...
Qxe3+ {[%clk 0:00:17]} 28. Kh1 {[%clk 0:01:57.8]} 28... Ra6 {[%clk 0:00:13.8]}
29. Qxe8+ {[%clk 0:01:55.4]} 29... Qxe8 {[%clk 0:00:12.8]} 30. Rxc8 {[%clk
0:01:55.9]} 1-0

[Event "Early-Titled-Tuesday-Blitz-February-20-2024"]
[Site "Chess.com"]
[Date "2024.02.20"]
[Round "3"]
[White "Louis-Paulsen-Fan"]
[Black "Nouali_Mohamed"]
[Result "0-1"]
[WhiteElo "2210"]
[BlackElo "2544"]
[TimeControl "180+1"]
[EndTime "8:26:35 PST"]
[Termination "Nouali_Mohamed won by resignation"]

1. d4 {[%clk 0:03:00.9]} 1... Nf6 {[%clk 0:02:58.8]} 2. Nf3 {[%clk 0:03:01.1]}
2... g6 {[%clk 0:02:58.9]} 3. c4 {[%clk 0:03:01.7]} 3... Bg7 {[%clk 0:02:59.1]}
4. Nc3 {[%clk 0:03:02.4]} 4... O-O {[%clk 0:02:59.4]} 5. e4 {[%clk 0:03:02.8]}
5... d6 {[%clk 0:03:00.3]} 6. Be2 {[%clk 0:03:03.4]} 6... c5 {[%clk 0:03:00.6]}
7. d5 {[%clk 0:03:02.9]} 7... a6 {[%clk 0:03:00.7]} 8. a4 {[%clk 0:03:02.5]}
8... e5 {[%clk 0:02:59]} 9. dxe6 {[%clk 0:02:56.8]} 9... Bxe6 {[%clk 0:02:58.7]}
10. Bg5 {[%clk 0:02:51.9]} 10... h6 {[%clk 0:02:56.9]} 11. Bh4 {[%clk
0:02:52.2]} 11... Nc6 {[%clk 0:02:55]} 12. O-O {[%clk 0:02:51.1]} 12... Re8
{[%clk 0:02:47.8]} 13. h3 {[%clk 0:02:33.2]} 13... Qb6 {[%clk 0:02:37.1]} 14.
Qd2 {[%clk 0:02:23.7]} 14... Na5 {[%clk 0:02:32.2]} 15. Qc2 {[%clk 0:01:54.9]}
15... Nxc4 {[%clk 0:02:16.5]} 16. b3 {[%clk 0:01:33.9]} 16... Na5 {[%clk
0:02:13.8]} 17. Rab1 {[%clk 0:01:33.1]} 17... Bxb3 {[%clk 0:02:07.7]} 18. Qd2
{[%clk 0:01:26.4]} 18... Nxe4 {[%clk 0:02:01]} 19. Nxe4 {[%clk 0:01:19]} 19...
Rxe4 {[%clk 0:02:01.6]} 20. Bg3 {[%clk 0:00:56.2]} 20... d5 {[%clk 0:01:51.3]}
21. Bd3 {[%clk 0:00:53.1]} 21... Rb4 {[%clk 0:01:48.5]} 22. Be5 {[%clk
0:00:45.8]} 22... Nc4 {[%clk 0:01:42.8]} 23. Bxc4 {[%clk 0:00:41.2]} 23... Bxc4
{[%clk 0:01:43.7]} 24. Rxb4 {[%clk 0:00:39.1]} 24... Qxb4 {[%clk 0:01:42.2]} 25.
Rc1 {[%clk 0:00:19.9]} 25... Qxd2 {[%clk 0:01:41]} 26. Nxd2 {[%clk 0:00:20.8]}
26... Bxe5 {[%clk 0:01:41.3]} 0-1

[Event "Early-Titled-Tuesday-Blitz-February-20-2024"]
[Site "Chess.com"]
[Date "2024.02.20"]
[Round "3"]
[White "pedro_nascimento85"]
[Black "NewYearGirl"]
[Result "0-1"]
[WhiteElo "2113"]
[BlackElo "2366"]
[TimeControl "180+1"]
[EndTime "8:26:40 PST"]
[Termination "NewYearGirl won by resignation"]

1. d4 {[%clk 0:03:00.9]} 1... Nf6 {[%clk 0:02:58.2]} 2. c4 {[%clk 0:03:01.1]}
2... c5 {[%clk 0:02:50.5]} 3. d5 {[%clk 0:03:00.4]} 3... b5 {[%clk 0:02:50.3]}
4. Qc2 {[%clk 0:02:59.7]} 4... b4 {[%clk 0:02:49.5]} 5. a3 {[%clk 0:02:58.2]}
5... Na6 {[%clk 0:02:43.2]} 6. e4 {[%clk 0:02:56.4]} 6... d6 {[%clk 0:02:41.8]}
7. Bf4 {[%clk 0:02:54.1]} 7... Nh5 {[%clk 0:02:31.8]} 8. Bg5 {[%clk 0:02:50.2]}
8... g6 {[%clk 0:02:27.4]} 9. Be2 {[%clk 0:02:49]} 9... Nf6 {[%clk 0:02:23.9]}
10. h3 {[%clk 0:02:41]} 10... Bg7 {[%clk 0:02:23.6]} 11. Nf3 {[%clk 0:02:41.6]}
11... h6 {[%clk 0:02:14.4]} 12. Bf4 {[%clk 0:02:35.9]} 12... bxa3 {[%clk
0:02:02.9]} 13. Qa4+ {[%clk 0:02:12.6]} 13... Qd7 {[%clk 0:01:49.7]} 14. Qxd7+
{[%clk 0:02:10.3]} 14... Nxd7 {[%clk 0:01:47.4]} 15. Rxa3 {[%clk 0:02:01.3]}
15... Bxb2 {[%clk 0:01:46.5]} 16. Ra2 {[%clk 0:01:56]} 16... Bg7 {[%clk
0:01:43.1]} 17. O-O {[%clk 0:01:55.7]} 17... Nb4 {[%clk 0:01:42.4]} 18. Rd2
{[%clk 0:01:50.5]} 18... a5 {[%clk 0:01:39.8]} 19. Na3 {[%clk 0:01:48.4]} 19...
Ba6 {[%clk 0:01:36.9]} 20. Nb5 {[%clk 0:01:34.7]} 20... Bxb5 {[%clk 0:01:35.4]}
21. cxb5 {[%clk 0:01:34.6]} 21... Nb6 {[%clk 0:01:35.6]} 22. Rfd1 {[%clk
0:01:10.8]} 22... Bc3 {[%clk 0:01:29.5]} 23. e5 {[%clk 0:00:50.4]} 23... Bxd2
{[%clk 0:01:23.3]} 24. Rxd2 {[%clk 0:00:51.3]} 24... N6xd5 {[%clk 0:01:20]} 25.
Bg3 {[%clk 0:00:50]} 25... dxe5 {[%clk 0:01:17.3]} 26. Bxe5 {[%clk 0:00:46.5]}
26... O-O {[%clk 0:01:14.9]} 0-1

[Event "Early-Titled-Tuesday-Blitz-February-20-2024"]
[Site "Chess.com"]
[Date "2024.02.20"]
[Round "3"]
[White "ChessSwole"]
[Black "gpsji27"]
[Result "1-0"]
[WhiteElo "2678"]
[BlackElo "2302"]
[TimeControl "180+1"]
[EndTime "8:26:45 PST"]
[Termination "ChessSwole won by resignation"]

1. e4 {[%clk 0:03:00.9]} 1... e5 {[%clk 0:02:59.2]} 2. Nf3 {[%clk 0:03:01]} 2...
Nc6 {[%clk 0:02:59.1]} 3. Nc3 {[%clk 0:03:01.4]} 3... Nf6 {[%clk 0:02:59.1]} 4.
Bb5 {[%clk 0:03:01.6]} 4... a6 {[%clk 0:02:59]} 5. Bxc6 {[%clk 0:03:00.9]} 5...
dxc6 {[%clk 0:02:59.5]} 6. O-O {[%clk 0:03:01.1]} 6... Bd6 {[%clk 0:02:59.5]} 7.
d3 {[%clk 0:02:59.7]} 7... O-O {[%clk 0:02:59.3]} 8. Ne2 {[%clk 0:02:59.5]} 8...
Bg4 {[%clk 0:02:57.6]} 9. Ng3 {[%clk 0:02:59.3]} 9... Re8 {[%clk 0:02:55.7]} 10.
h3 {[%clk 0:02:59.6]} 10... Be6 {[%clk 0:02:55.4]} 11. Qe2 {[%clk 0:02:52.8]}
11... Bc5 {[%clk 0:02:41.9]} 12. Nh4 {[%clk 0:02:48.7]} 12... Bf8 {[%clk
0:02:05]} 13. Nhf5 {[%clk 0:02:48.6]} 13... g6 {[%clk 0:02:04.2]} 14. Ne3 {[%clk
0:02:43.5]} 14... h5 {[%clk 0:01:56.3]} 15. b3 {[%clk 0:02:22]} 15... h4 {[%clk
0:01:38]} 16. Nh1 {[%clk 0:02:21.8]} 16... Nh5 {[%clk 0:01:23.7]} 17. Bb2 {[%clk
0:02:15.7]} 17... Bg7 {[%clk 0:01:10.7]} 18. Qf3 {[%clk 0:01:50.3]} 18... Qg5
{[%clk 0:01:01.4]} 19. Kh2 {[%clk 0:01:44.5]} 19... Rad8 {[%clk 0:00:54.3]} 20.
g3 {[%clk 0:01:35.1]} 20... hxg3+ {[%clk 0:00:41.5]} 21. fxg3 {[%clk 0:01:36]}
21... Bh6 {[%clk 0:00:30.2]} 22. Ng2 {[%clk 0:01:35.7]} 22... Ng7 {[%clk
0:00:24.7]} 23. Bc1 {[%clk 0:01:33.1]} 1-0

[Event "Early-Titled-Tuesday-Blitz-February-20-2024"]
[Site "Chess.com"]
[Date "2024.02.20"]
[Round "3"]
[White "OneTrickPony_82"]
[Black "Larina_Maria"]
[Result "1-0"]
[WhiteElo "2557"]
[BlackElo "2288"]
[TimeControl "180+1"]
[EndTime "8:26:46 PST"]
[Termination "OneTrickPony_82 won by resignation"]

1. d4 {[%clk 0:03:00.9]} 1... f5 {[%clk 0:02:59.6]} 2. Bf4 {[%clk 0:02:59.9]}
2... Nf6 {[%clk 0:02:57.6]} 3. e3 {[%clk 0:03:00.2]} 3... d6 {[%clk 0:02:55.2]}
4. Nc3 {[%clk 0:02:59.2]} 4... g6 {[%clk 0:02:50.4]} 5. h4 {[%clk 0:02:59.3]}
5... h6 {[%clk 0:02:48.5]} 6. Bc4 {[%clk 0:02:57.3]} 6... e6 {[%clk 0:02:48]} 7.
Nh3 {[%clk 0:02:50]} 7... a6 {[%clk 0:02:23.9]} 8. Qd2 {[%clk 0:02:47.1]} 8...
b5 {[%clk 0:02:20.7]} 9. Bb3 {[%clk 0:02:42.6]} 9... Qe7 {[%clk 0:02:20.4]} 10.
f3 {[%clk 0:02:38.6]} 10... Bb7 {[%clk 0:02:19.7]} 11. O-O-O {[%clk 0:02:36.2]}
11... Nbd7 {[%clk 0:02:18.7]} 12. Bh2 {[%clk 0:02:35]} 12... O-O-O {[%clk
0:02:15.8]} 13. Nf4 {[%clk 0:02:31.7]} 13... g5 {[%clk 0:01:36.4]} 14. Ng6
{[%clk 0:02:24.2]} 14... Qg7 {[%clk 0:01:36.1]} 15. Nxh8 {[%clk 0:02:24.1]}
15... Qxh8 {[%clk 0:01:37]} 16. hxg5 {[%clk 0:02:22.7]} 16... hxg5 {[%clk
0:01:35.5]} 17. Bxe6 {[%clk 0:02:20.2]} 17... Qg7 {[%clk 0:01:32.1]} 18. Bxf5
{[%clk 0:02:19.1]} 18... Kb8 {[%clk 0:01:32.2]} 19. e4 {[%clk 0:02:18.3]} 19...
Nb6 {[%clk 0:01:32.1]} 20. b3 {[%clk 0:02:12.8]} 20... d5 {[%clk 0:01:27.5]} 21.
Be5 {[%clk 0:02:10.1]} 21... Ba3+ {[%clk 0:01:26.5]} 22. Kb1 {[%clk 0:02:09.7]}
22... Bb4 {[%clk 0:01:24.2]} 23. Rh7 {[%clk 0:02:04.2]} 23... Qf8 {[%clk
0:01:18.5]} 24. Bxc7+ {[%clk 0:01:49.5]} 24... Ka7 {[%clk 0:01:18]} 25. Bxd8
{[%clk 0:01:49.3]} 25... Qxd8 {[%clk 0:01:18.8]} 26. Nxb5+ {[%clk 0:01:40.1]}
26... axb5 {[%clk 0:01:17.8]} 27. Rxb7+ {[%clk 0:01:39.9]} 27... Kxb7 {[%clk
0:01:17.5]} 28. Qxb4 {[%clk 0:01:40.6]} 28... dxe4 {[%clk 0:01:17]} 29. fxe4
{[%clk 0:01:40.2]} 29... Qc7 {[%clk 0:01:10.5]} 30. Qxb5 {[%clk 0:01:33.3]}
30... Ne8 {[%clk 0:01:06.5]} 31. e5 {[%clk 0:01:31.2]} 31... Ng7 {[%clk
0:01:03]} 32. Be4+ {[%clk 0:01:30.9]} 32... Kb8 {[%clk 0:01:03]} 33. Rf1 {[%clk
0:01:29.2]} 33... Ne6 {[%clk 0:01:02.1]} 34. c3 {[%clk 0:01:25.9]} 34... Nf4
{[%clk 0:01:00.9]} 35. Kb2 {[%clk 0:01:20.6]} 1-0

[Event "Early-Titled-Tuesday-Blitz-February-20-2024"]
[Site "Chess.com"]
[Date "2024.02.20"]
[Round "3"]
[White "ArchibaldCerveza29"]
[Black "Cubitas"]
[Result "1-0"]
[WhiteElo "2484"]
[BlackElo "2656"]
[TimeControl "180+1"]
[EndTime "8:26:50 PST"]
[Termination "ArchibaldCerveza29 won by resignation"]

1. e4 {[%clk 0:03:00.9]} 1... e6 {[%clk 0:03:00.2]} 2. d4 {[%clk 0:03:00.2]}
2... d5 {[%clk 0:03:00.8]} 3. Nd2 {[%clk 0:03:00.9]} 3... dxe4 {[%clk
0:03:00.4]} 4. Nxe4 {[%clk 0:03:01.8]} 4... Nf6 {[%clk 0:03:00.8]} 5. Bd3 {[%clk
0:03:02.5]} 5... Nbd7 {[%clk 0:02:58.8]} 6. Qe2 {[%clk 0:03:01.9]} 6... Nxe4
{[%clk 0:02:58]} 7. Bxe4 {[%clk 0:03:02.8]} 7... Nf6 {[%clk 0:02:58.4]} 8. Bxb7
{[%clk 0:03:03]} 8... Bxb7 {[%clk 0:02:31.2]} 9. Qb5+ {[%clk 0:03:02.7]} 9...
Qd7 {[%clk 0:02:29.7]} 10. Qxb7 {[%clk 0:03:02.8]} 10... Rd8 {[%clk 0:02:29.7]}
11. Nf3 {[%clk 0:03:02.9]} 11... Nd5 {[%clk 0:02:20.5]} 12. O-O {[%clk
0:02:53.9]} 12... Bd6 {[%clk 0:02:17.3]} 13. c4 {[%clk 0:02:43.9]} 13... Nf6
{[%clk 0:02:07.9]} 14. Be3 {[%clk 0:02:27.4]} 14... O-O {[%clk 0:02:04.8]} 15.
c5 {[%clk 0:02:27.5]} 15... Be7 {[%clk 0:02:03.9]} 16. Ne5 {[%clk 0:02:25.3]}
16... Qd5 {[%clk 0:01:55.5]} 17. Qxc7 {[%clk 0:02:04.8]} 17... Rfe8 {[%clk
0:01:51.4]} 18. Qxa7 {[%clk 0:02:01.5]} 18... Ne4 {[%clk 0:01:48.8]} 19. Qa6
{[%clk 0:01:41.1]} 19... Nxc5 {[%clk 0:01:44.3]} 20. dxc5 {[%clk 0:01:42]} 20...
Qxe5 {[%clk 0:01:44.4]} 21. b4 {[%clk 0:01:37.8]} 21... Rb8 {[%clk 0:01:33.6]}
22. Qc4 {[%clk 0:01:36.8]} 22... Bd8 {[%clk 0:01:32.6]} 23. a4 {[%clk
0:01:33.8]} 23... Bc7 {[%clk 0:01:31.4]} 24. g3 {[%clk 0:01:33.2]} 24... g5
{[%clk 0:01:16.8]} 25. b5 {[%clk 0:01:23.2]} 25... Rec8 {[%clk 0:01:14.7]} 26.
Qd4 {[%clk 0:01:15.6]} 26... Qf5 {[%clk 0:01:12.7]} 27. Rad1 {[%clk 0:01:14.7]}
27... Qf3 {[%clk 0:01:09.7]} 28. Bxg5 {[%clk 0:01:09.9]} 28... Rd8 {[%clk
0:01:05]} 29. Bxd8 {[%clk 0:01:09.6]} 29... Rxd8 {[%clk 0:01:05.9]} 30. Qe3
{[%clk 0:00:55.4]} 30... Qg4 {[%clk 0:01:02]} 31. Rxd8+ {[%clk 0:00:54.5]} 31...
Bxd8 {[%clk 0:01:02.9]} 32. Qf4 {[%clk 0:00:52.9]} 32... Bf6 {[%clk 0:01:03.8]}
33. Qxg4+ {[%clk 0:00:52.3]} 1-0